fUSD/lending_fUSD_20250507
["ID","MTS","AMOUNT","RATE_DAILY","PERIOD"]
[360218494,1746630649153,-450.0,0.00019998,2]
[360218495,1746630649163,-559.97,0.00019998,2]
[360218496,1746630649174,-450.0,0.00019998,2]
[360218497,1746630649184,-450.0,0.00019998,2]
[360218498,1746630649195,-450.0,0.00019998,2]
[360218499,1746630649205,-450.0,0.00019998,2]
[360218500,1746630649215,-450.0,0.00019998,2]
[360218501,1746630649226,-450.0,0.00019998,2]
[360218502,1746630649237,-450.0,0.00019998,2]
[360218503,1746630649247,-450.0,0.00019998,2]
[360218504,1746630649258,-200.0,0.00019999,2]
[360218505,1746630649268,-200.0,0.00019999,2]
[360218506,1746630649278,-450.0,0.00019999,2]
[360218507,1746630649289,-450.0,0.00019999,2]
[360218508,1746630649299,-450.0,0.00019999,2]
[360218509,1746630649309,-450.0,0.00019999,2]
[360218510,1746630649320,-450.0,0.00019999,2]
[360218511,1746630649329,-450.0,0.00019999,2]
[360218512,1746630649340,-450.0,0.00019999,2]
[360218513,1746630649351,-450.0,0.00019999,2]
[360218514,1746630649361,-450.0,0.00019999,2]
[360218515,1746630649371,-450.0,0.00019999,2]
[360218516,1746630649381,-450.0,0.00019999,2]
[360218517,1746630649392,-497.94,0.00019999,2]
[360218518,1746630649402,-528.8,0.00019999,2]
[360218519,1746630649412,-450.0,0.00019999,2]
[360218520,1746630649423,-564.12,0.00019999,2]
[360218521,1746630649433,-464.88,0.00019999,2]
[360218522,1746630649443,-177.8429963,0.00019999,2]
[360218523,1746630649453,-450.0,0.00019999,2]
[360218524,1746630649464,-450.0,0.00019999,2]
[360218525,1746630649474,-450.0,0.00019999,2]
[360218526,1746630649484,-450.0,0.00019999,2]
[360218527,1746630649494,-450.0,0.00019999,2]
[360218528,1746630649504,-4214.37,0.00019999,2]
[360218529,1746630649514,-4214.37,0.00019999,2]
[360218530,1746630649524,-4214.37,0.00019999,2]
[360218531,1746630649535,-4214.37,0.00019999,2]
[360218532,1746630649545,-4214.37,0.00019999,2]
[360218533,1746630649555,-4214.37,0.00019999,2]
[360218534,1746630649571,-4214.37,0.00019999,2]
[360218535,1746630649581,-4214.37,0.00019999,2]
[360218536,1746630649592,-4214.37,0.00019999,2]
[360218537,1746630649603,-4214.37,0.00019999,2]
[360218538,1746630649613,-4214.37,0.00019999,2]
[360218539,1746630649625,-4214.37,0.00019999,2]
[360218540,1746630649635,-4214.37,0.00019999,2]
[360218541,1746630649645,-4214.37,0.00019999,2]
[360218542,1746630649658,-4214.37,0.00019999,2]
[360218543,1746630649668,-4214.37,0.00019999,2]
[360218544,1746630649678,-4086.01518409,0.00019999,2]
[360218545,1746630649933,-128.35481591,0.00019999,2]
[360218546,1746630649943,-4214.37,0.00019999,2]
[360218547,1746630649955,-4214.37,0.00019999,2]
[360218548,1746630649965,-4214.37,0.00019999,2]
[360218549,1746630649975,-4214.37,0.00019999,2]
[360218550,1746630649985,-4214.5928,0.00019999,2]
[360218551,1746630649995,-179.77,0.00019999,2]
[360218552,1746630650005,-526.76,0.00019999,2]
[360218553,1746630650015,-450.0,0.00019999,2]
[360218554,1746630650025,-450.0,0.00019999,2]
[360218555,1746630650035,-307.13,0.00019999,2]
[360218556,1746630650045,-4366.17,0.00019999,2]
[360218557,1746630650057,-4366.17,0.00019999,2]
[360218558,1746630650069,-4366.17,0.00019999,2]
[360218559,1746630650078,-4366.17,0.00019999,2]
[360218560,1746630650088,-4366.17,0.00019999,2]
[360218561,1746630650098,-4366.17,0.00019999,2]
[360218562,1746630650107,-4366.17,0.00019999,2]
[360218563,1746630650117,-4366.17,0.00019999,2]
[360218564,1746630650126,-1897.99538409,0.00019999,2]
[360218565,1746630650142,-2468.17461591,0.00019999,2]
[360218566,1746630650152,-4366.17,0.00019999,2]
[360218567,1746630650162,-4366.17,0.00019999,2]
[360218568,1746630650171,-4366.17,0.00019999,2]
[360218569,1746630650181,-4366.17,0.00019999,2]
[360218570,1746630650191,-4366.17,0.00019999,2]
[360218571,1746630650200,-4366.17,0.00019999,2]
[360218572,1746630650210,-4366.17,0.00019999,2]
[360218573,1746630650219,-4366.17,0.00019999,2]
[360218574,1746630650229,-4366.17,0.00019999,2]
[360218575,1746630650238,-3943.71638409,0.00019999,2]
[360218576,1746630650250,-422.45361591,0.00019999,2]
[360218577,1746630650259,-4366.17,0.00019999,2]
[360218578,1746630650268,-4366.17,0.00019999,2]
[360218579,1746630650278,-4366.3875,0.00019999,2]
[360218580,1746630650288,-450.0,0.00019999,2]
[360218581,1746630650298,-450.0,0.00019999,2]
[360218582,1746630650308,-450.0,0.00019999,2]
[360218583,1746630650318,-450.0,0.00019999,2]
[360218584,1746630650327,-450.0,0.00019999,2]
[360218585,1746630650338,-450.0,0.00019999,2]
[360218586,1746630650349,-450.0,0.00019999,2]
[360218587,1746630650358,-450.0,0.00019999,2]
[360218588,1746630650367,-450.0,0.00019999,2]
[360218589,1746630650377,-450.0,0.00019999,2]
[360218590,1746630650388,-450.0,0.00019999,2]
[360218591,1746630650398,-450.0,0.00019999,2]
[360218592,1746630650407,-450.0,0.00019999,2]
[360218593,1746630650417,-450.0,0.00019999,2]
[360218594,1746630650427,-499.94,0.00019999,2]
[360218595,1746630650436,-450.0,0.00019999,2]
[360218596,1746630650447,-450.0,0.00019999,2]
[360218597,1746630650456,-2566.73,0.00019999,2]
[360218598,1746630650467,-551.02,0.00019999,2]
[360218599,1746630650476,-2566.73,0.00019999,2]
[360218600,1746630650486,-751.56266409,0.00019999,2]
[360218601,1746630650498,-1815.16733591,0.00019999,2]
[360218602,1746630650708,-2566.73,0.00019999,2]
[360218603,1746630650718,-2566.73,0.00019999,2]
[360218604,1746630650729,-2566.73,0.00019999,2]
[360218605,1746630650739,-2566.73,0.00019999,2]
[360218606,1746630650749,-2566.73,0.00019999,2]
[360218607,1746630650760,-2566.73,0.00019999,2]
[360218608,1746630650770,-2566.73,0.00019999,2]
[360218609,1746630650781,-2314.24338409,0.00019999,2]
[360218610,1746630650794,-252.48661591,0.00019999,2]
[360218611,1746630650804,-450.0,0.00019999,2]
[360218612,1746630650815,-1207.76096178,0.00019999,2]
[360218613,1746630650827,-1358.96903822,0.00019999,2]
[360218614,1746630650836,-450.0,0.00019999,2]
[360218615,1746630650848,-127.02856179,0.00019999,2]
[360218616,1746630668436,485.83,0.00018834,2]
[360218617,1746630748561,502.538175,0.00019416,2]
[360218618,1746630809841,150.0,0.00018834,2]
[360218619,1746630838500,200.0,0.00018834,2]
[360218620,1746630845685,150.0,0.0003,30]
[360218621,1746630851067,500.0,0.00029589,30]
[360218622,1746630851576,500.0,0.00029863,30]
[360218623,1746630916978,1000.0,0.00018884,2]
[360218624,1746631070046,23900.0,0.00018863,2]
[360218626,1746631165202,160.23,0.00018864,2]
[360218627,1746631216096,192.13,0.00018815,2]
[360218628,1746631290379,250.0,0.00018864,2]
[360218629,1746631346119,500.0,0.00018796,2]
[360218630,1746631406723,166.55,0.00019345,2]
[360218631,1746631417161,200.51923094,0.00019248,2]
[360218632,1746631439241,500.0,0.00029589,30]
[360218633,1746631439489,500.0,0.00029863,30]
[360218634,1746631484742,292.22168889,0.000195,2]
[360218635,1746631489931,150.0,0.00018986,7]
[360218649,1746631581197,804.38,0.00016852,2]
[360218650,1746631581431,804.38,0.00019115,2]
[360218654,1746631658176,16355.39,0.00018774,2]
[360218682,1746631765812,200.0,0.00018741,2]
[360218687,1746631791477,537.63482845,0.000193,2]
[360218688,1746631792914,537.61,0.00019492,2]
[360218689,1746631822540,2616.683602,0.00019429,2]
[360218690,1746631825782,248.67184912,0.00019499,2]
[360218700,1746631831622,-151.0,0.00019527,2]
[360218701,1746631831632,-200.0,0.00019541,2]
[360218702,1746631831643,-250.0,0.00019541,2]
[360218703,1746631831653,-1200.0,0.00019554,2]
[360218704,1746631831662,-300.0,0.00019554,2]
[360218705,1746631831672,-300.0,0.00019554,2]
[360218706,1746631831682,-16822.86687915,0.00019555,2]
[360218707,1746631831692,-200.0,0.00019564,2]
[360218708,1746631831701,-449.83,0.00019589,2]
[360218709,1746631831710,-449.83,0.00019589,2]
[360218710,1746631831721,-449.83,0.00019589,2]
[360218711,1746631831731,-449.83,0.00019589,2]
[360218712,1746631831741,-449.83,0.00019589,2]
[360218713,1746631831751,-449.83,0.00019589,2]
[360218714,1746631831760,-449.83,0.00019589,2]
[360218715,1746631831770,-537.61,0.0001959,2]
[360218716,1746631831780,-449.83,0.0001959,2]
[360218717,1746631831791,-449.83,0.0001959,2]
[360218718,1746631831800,-449.83,0.0001959,2]
[360218719,1746631831810,-16822.86687913,0.00019593,2]
[360218720,1746631831820,-694.0,0.00019598,2]
[360218721,1746631831830,-500.0,0.00019599,2]
[360218722,1746631831840,-251.7092343,0.00019599,2]
[360218723,1746631831850,-1196.90785133,0.00019599,2]
[360218724,1746631831860,-500.0,0.00019599,2]
[360218725,1746631831870,-1173.54654829,0.00019599,2]
[360218726,1746631831882,-500.0,0.00019599,2]
[360218727,1746631831892,-1196.90785133,0.00019599,2]
[360218728,1746631831902,-164.17973276,0.00019599,2]
[360218729,1746631831911,-227.38278045,0.00019599,2]
[360218730,1746631831923,-1173.54654829,0.00019599,2]
[360218732,1746631831934,-1196.90785133,0.00019599,2]
[360218734,1746631831944,-1173.54654829,0.00019599,2]
[360218736,1746631831954,-1196.90785133,0.00019599,2]
[360218738,1746631831964,-1196.90785133,0.00019599,2]
[360218740,1746631831976,-1173.54654829,0.00019599,2]
[360218742,1746631831985,-1196.90785133,0.00019599,2]
[360218744,1746631831995,-1173.54654829,0.00019599,2]
[360218746,1746631832005,-1196.90785133,0.00019599,2]
[360218748,1746631832015,-1196.90785133,0.00019599,2]
[360218750,1746631832024,-1173.54654829,0.00019599,2]
[360218752,1746631832034,-1196.90785133,0.00019599,2]
[360218754,1746631832044,-1173.54654829,0.00019599,2]
[360218755,1746631832054,-1196.90785133,0.00019599,2]
[360218756,1746631832064,-1173.54654829,0.00019599,2]
[360218758,1746631832074,-1196.90785133,0.00019599,2]
[360218760,1746631832084,-1196.90785133,0.00019599,2]
[360218761,1746631832093,-1173.54654829,0.00019599,2]
[360218763,1746631832103,-1196.90785133,0.00019599,2]
[360218765,1746631832113,-1173.54654829,0.00019599,2]
[360218767,1746631832122,-1196.90785133,0.00019599,2]
[360218769,1746631832136,-1173.54654829,0.00019599,2]
[360218771,1746631832146,-1196.90785133,0.00019599,2]
[360218773,1746631832156,-1173.54654829,0.00019599,2]
[360218775,1746631832165,-1196.90785133,0.00019599,2]
[360218777,1746631832176,-1196.90785133,0.00019599,2]
[360218780,1746631832186,-1173.54654829,0.00019599,2]
[360218781,1746631832196,-1196.90785133,0.00019599,2]
[360218783,1746631832206,-1173.54654829,0.00019599,2]
[360218786,1746631832218,-1196.90785133,0.00019599,2]
[360218788,1746631832228,-1173.54654829,0.00019599,2]
[360218790,1746631832239,-1196.90785133,0.00019599,2]
[360218792,1746631832249,-1196.90785133,0.00019599,2]
[360218794,1746631832259,-1173.54654829,0.00019599,2]
[360218796,1746631832269,-1173.54654829,0.00019599,2]
[360218798,1746631832279,-1196.90785133,0.00019599,2]
[360218800,1746631832288,-1173.54654829,0.00019599,2]
[360218802,1746631832298,-1196.90785133,0.00019599,2]
[360218804,1746631832307,-1173.54654829,0.00019599,2]
[360218806,1746631832317,-1196.90785133,0.00019599,2]
[360218808,1746631832327,-1173.54654829,0.00019599,2]
[360218810,1746631832337,-1196.90785133,0.00019599,2]
[360218812,1746631832346,-1173.54654829,0.00019599,2]
[360218814,1746631832356,-1196.90785133,0.00019599,2]
[360218816,1746631832366,-1196.90785133,0.00019599,2]
[360218818,1746631832375,-1173.54654829,0.00019599,2]
[360218820,1746631832385,-1196.90785133,0.00019599,2]
[360218822,1746631832395,-1173.54654829,0.00019599,2]
[360218824,1746631832404,-1196.90785133,0.00019599,2]
[360218826,1746631832414,-1196.90785133,0.00019599,2]
[360218828,1746631832423,-1196.90785133,0.00019599,2]
[360218830,1746631832433,-1173.54654829,0.00019599,2]
[360218832,1746631832443,-1196.90785133,0.00019599,2]
[360218833,1746631832453,-1173.54654829,0.00019599,2]
[360218835,1746631832463,-1196.90785133,0.00019599,2]
[360218837,1746631832475,-1196.90785133,0.00019599,2]
[360218838,1746631832485,-1196.90785133,0.00019599,2]
[360218839,1746631832494,-1173.54654829,0.00019599,2]
[360218840,1746631832504,-1196.90785133,0.00019599,2]
[360218841,1746631832514,-1173.54654829,0.00019599,2]
[360218842,1746631832524,-1196.90785133,0.00019599,2]
[360218843,1746631832533,-1173.54654829,0.00019599,2]
[360218844,1746631832544,-1196.90785133,0.00019599,2]
[360218845,1746631832554,-3226.30464277,0.00019599,2]
[360218846,1746631832563,-3226.30464277,0.00019599,2]
[360218847,1746631832573,-3226.30464277,0.00019599,2]
[360218848,1746631832582,-3226.30464277,0.00019599,2]
[360218849,1746631832591,-3226.30464277,0.00019599,2]
[360218850,1746631832600,-3226.30464277,0.00019599,2]
[360218851,1746631832610,-3226.30464277,0.00019599,2]
[360218852,1746631832620,-1160.07962068,0.00019599,2]
[360218853,1746631832629,-3226.30464277,0.00019599,2]
[360218854,1746631832639,-1160.07962068,0.00019599,2]
[360218855,1746631832648,-3226.30464277,0.00019599,2]
[360218856,1746631832658,-3226.30464277,0.00019599,2]
[360218857,1746631832667,-3226.30464277,0.00019599,2]
[360218858,1746631832676,-1160.07962068,0.00019599,2]
[360218859,1746631832687,-3226.30464277,0.00019599,2]
[360218860,1746631832696,-3226.30464277,0.00019599,2]
[360218861,1746631832705,-1160.07962068,0.00019599,2]
[360218862,1746631832715,-3226.30464277,0.00019599,2]
[360218863,1746631832726,-1160.07962068,0.00019599,2]
[360218864,1746631832736,-3226.30464277,0.00019599,2]
[360218865,1746631832745,-3226.30464277,0.00019599,2]
[360218866,1746631832755,-1160.07962068,0.00019599,2]
[360218867,1746631832764,-3226.30464277,0.00019599,2]
[360218868,1746631832774,-1160.07962068,0.00019599,2]
[360218869,1746631832783,-3226.30464277,0.00019599,2]
[360218870,1746631832793,-1160.07962068,0.00019599,2]
[360218871,1746631832803,-3226.30464277,0.00019599,2]
[360218872,1746631832813,-3226.30464277,0.00019599,2]
[360218873,1746631832822,-1160.07962068,0.00019599,2]
[360218874,1746631832832,-1160.07962068,0.00019599,2]
[360218875,1746631832842,-3226.30464277,0.00019599,2]
[360218876,1746631832851,-1160.07962068,0.00019599,2]
[360218877,1746631832861,-1160.07962068,0.00019599,2]
[360218878,1746631832871,-3226.30464277,0.00019599,2]
[360218879,1746631832880,-3226.30464277,0.00019599,2]
[360218880,1746631832890,-1160.07962068,0.00019599,2]
[360218881,1746631832899,-3226.30464277,0.00019599,2]
[360218882,1746631832910,-1160.07962068,0.00019599,2]
[360218883,1746631832920,-3226.30464277,0.00019599,2]
[360218884,1746631832929,-3226.30464277,0.00019599,2]
[360218885,1746631832940,-1160.07962068,0.00019599,2]
[360218886,1746631832949,-1160.07962068,0.00019599,2]
[360218887,1746631832959,-1160.07962068,0.00019599,2]
[360218888,1746631832968,-1160.07962068,0.00019599,2]
[360218889,1746631832977,-512.10954222,0.00019599,2]
[360218890,1746631833025,-647.97007846,0.00019599,2]
[360218891,1746631833035,-516.66237311,0.00019599,2]
[360218892,1746631833047,-643.41724757,0.00019599,2]
[360218893,1746631833056,-1160.07962068,0.00019599,2]
[360218894,1746631833067,-1160.07962068,0.00019599,2]
[360218895,1746631833076,-1160.07962068,0.00019599,2]
[360218896,1746631833086,-250.74240815,0.00019599,2]
[360218897,1746631833098,-450.05155706,0.00019599,2]
[360218898,1746631833110,-459.28565547,0.00019599,2]
[360218899,1746631833120,-394.96910534,0.00019599,2]
[360218900,1746631833133,-389.9341405,0.00019599,2]
[360218901,1746631833159,-569.26056478,0.00019598,2]
[360218902,1746631833169,-351.29238266,0.00019599,2]
[360218903,1746631833178,-602.94421006,0.00019599,2]
[360218904,1746631833190,-381.7991848,0.00019599,2]
[360218905,1746631833202,-151.45223364,0.00019599,2]
[360218906,1746631833212,-606.24888682,0.00019599,2]
[360218907,1746631833227,-529.94674168,0.00019599,2]
[360218908,1746631833237,-1136.1956285,0.00019599,2]
[360218909,1746631833247,-1136.1956285,0.00019599,2]
[360218910,1746631833256,-1136.1956285,0.00019599,2]
[360218911,1746631833266,-1136.1956285,0.00019599,2]
[360218912,1746631833275,-1136.1956285,0.00019599,2]
[360218913,1746631833285,-1136.1956285,0.00019599,2]
[360218914,1746631833294,-1136.1956285,0.00019599,2]
[360218915,1746631833304,-1136.1956285,0.00019599,2]
[360218916,1746631833314,-29.43520382,0.00019599,2]
[360218917,1746631833326,-1106.76042468,0.00019599,2]
[360218918,1746631833336,-753.65518058,0.00019599,2]
[360218919,1746631833349,-382.54044792,0.00019599,2]
[360218920,1746631833358,-641.70048733,0.00019599,2]
[360218924,1746631837857,-450.0,0.00019598,2]
[360218925,1746631837866,-540.76681226,0.00019598,2]
[360218926,1746631837875,-450.0,0.00019598,2]
[360218927,1746631837885,-494.49514117,0.00019599,2]
[360218928,1746631837896,-1136.1956285,0.00019599,2]
[360218929,1746631837908,-1136.1956285,0.00019599,2]
[360218930,1746631837917,-1136.1956285,0.00019599,2]
[360218931,1746631837927,-1136.1956285,0.00019599,2]
[360218932,1746631837937,-1136.1956285,0.00019599,2]
[360218933,1746631837949,-1136.1956285,0.00019599,2]
[360218934,1746631837961,-3156.16758532,0.00019599,2]
[360218935,1746631837971,-3156.16758532,0.00019599,2]
[360218936,1746631837981,-3156.16758532,0.00019599,2]
[360218937,1746631837991,-3156.16758532,0.00019599,2]
[360218938,1746631838001,-3156.16758532,0.00019599,2]
[360218939,1746631838012,-3156.16758532,0.00019599,2]
[360218940,1746631838023,-3156.16758532,0.00019599,2]
[360218941,1746631838035,-3156.16758532,0.00019599,2]
[360218942,1746631838045,-3156.16758532,0.00019599,2]
[360218943,1746631838055,-3156.16758532,0.00019599,2]
[360218944,1746631838065,-3156.16758532,0.00019599,2]
[360218945,1746631838077,-3156.16758532,0.00019599,2]
[360218946,1746631838086,-3156.16758532,0.00019599,2]
[360218947,1746631838096,-3156.16758532,0.00019599,2]
[360218948,1746631838105,-3156.16758532,0.00019599,2]
[360218949,1746631838116,-3156.16758532,0.00019599,2]
[360218951,1746631838125,-3156.16758532,0.00019599,2]
[360218952,1746631838135,-3156.16758532,0.00019599,2]
[360218953,1746631838145,-1114.553807,0.00019599,2]
[360218954,1746631838156,-1114.553807,0.00019599,2]
[360218955,1746631838166,-1114.553807,0.00019599,2]
[360218956,1746631838178,-1114.553807,0.00019599,2]
[360218957,1746631838189,-1114.553807,0.00019599,2]
[360218958,1746631838198,-1114.553807,0.00019599,2]
[360218959,1746631838208,-1114.553807,0.00019599,2]
[360218960,1746631838221,-1114.553807,0.00019599,2]
[360218961,1746631838230,-1114.553807,0.00019599,2]
[360218962,1746631838241,-1114.553807,0.00019599,2]
[360218963,1746631838251,-1114.553807,0.00019599,2]
[360218964,1746631838262,-1114.553807,0.00019599,2]
[360218965,1746631838272,-1114.553807,0.00019599,2]
[360218966,1746631838282,-3302.28645501,0.00019599,2]
[360218967,1746631838292,-3302.28645501,0.00019599,2]
[360218968,1746631838302,-3302.28645501,0.00019599,2]
[360218969,1746631838312,-3302.28645501,0.00019599,2]
[360218970,1746631838322,-3302.28645501,0.00019599,2]
[360218971,1746631838331,-3302.28645501,0.00019599,2]
[360218972,1746631838339,-1114.55380695,0.00019599,2]
[360218973,1746631838347,-630.7130308,0.00019599,2]
[360218974,1746631838357,-82347.94057429,0.000196,2]
[360218975,1746631838367,-537.61,0.000196,2]
[360218976,1746631838376,-16822.86687913,0.00019632,2]
[360218977,1746631838386,-308.5368,0.00019645,2]
[360218978,1746631838395,-555.10218329,0.00019664,2]
[360218979,1746631838405,-16822.86687913,0.0001967,2]
[360218980,1746631838415,-339.69197284,0.00019692,2]
[360218981,1746631838425,-1612.83,0.00019692,2]
[360218982,1746631838435,-16822.86687913,0.00019708,2]
[360218983,1746631838444,-207.4,0.00019724,2]
[360218984,1746631838454,-35643.78005475,0.00019736,2]
[360218985,1746631838465,-16822.86687913,0.00019747,2]
[360218986,1746631838475,-151.0,0.00019762,2]
[360218987,1746631838484,-151.0,0.00019762,2]
[360218988,1746631838494,-155.0,0.00019762,2]
[360218989,1746631838504,-151.0,0.00019762,2]
[360218990,1746631838514,-668.65185757,0.00019762,2]
[360218991,1746631838524,-151.0,0.00019762,2]
[360218992,1746631838534,-528.97780922,0.00019764,2]
[360218993,1746631838546,-529.81,0.00019764,2]
[360218994,1746631838557,-502.67598396,0.00019764,2]
[360218995,1746631838568,-585.6818588,0.00019764,2]
[360218996,1746631838578,-500.0,0.00019764,2]
[360218997,1746631838588,-554.06365018,0.00019764,2]
[360218998,1746631838598,-535.29216563,0.00019764,2]
[360218999,1746631838607,-561.38909405,0.00019764,2]
[360219000,1746631838617,-522.60070961,0.00019764,2]
[360219001,1746631838626,-525.78718233,0.00019764,2]
[360219002,1746631838636,-500.0,0.00019764,2]
[360219003,1746631838646,-176.424439,0.00019764,2]
[360219004,1746631838657,-450.0,0.00019764,2]
[360219005,1746631838666,-450.0,0.00019764,2]
[360219006,1746631838676,-450.0,0.00019764,2]
[360219007,1746631838686,-450.0,0.00019764,2]
[360219008,1746631838696,-450.0,0.00019764,2]
[360219009,1746631838705,-450.0,0.00019764,2]
[360219010,1746631838715,-450.0,0.00019764,2]
[360219011,1746631838726,-507.05,0.00019764,2]
[360219012,1746631838736,-450.0,0.00019764,2]
[360219013,1746631838747,-450.0,0.00019764,2]
[360219014,1746631838759,-450.0,0.00019764,2]
[360219015,1746631838769,-500.0,0.00019764,2]
[360219016,1746631838779,-450.0,0.00019764,2]
[360219017,1746631838790,-450.0,0.00019764,2]
[360219018,1746631838800,-500.0,0.00019764,2]
[360219019,1746631838809,-450.0,0.00019764,2]
[360219020,1746631838819,-450.0,0.00019764,2]
[360219021,1746631838829,-450.0,0.00019764,2]
[360219022,1746631838838,-450.0,0.00019764,2]
[360219023,1746631838848,-450.0,0.00019764,2]
[360219024,1746631838857,-450.0,0.00019764,2]
[360219025,1746631838867,-450.0,0.00019764,2]
[360219026,1746631838876,-450.0,0.00019764,2]
[360219027,1746631838886,-450.0,0.00019764,2]
[360219028,1746631838896,-450.0,0.00019764,2]
[360219029,1746631838906,-450.0,0.00019764,2]
[360219030,1746631838915,-450.0,0.00019764,2]
[360219031,1746631838924,-450.0,0.00019764,2]
[360219032,1746631838933,-450.0,0.00019764,2]
[360219033,1746631838943,-450.0,0.00019764,2]
[360219034,1746631838953,-450.0,0.00019764,2]
[360219035,1746631838963,-450.0,0.00019764,2]
[360219036,1746631838974,-450.0,0.00019764,2]
[360219037,1746631838983,-450.0,0.00019764,2]
[360219038,1746631838992,-450.0,0.00019764,2]
[360219039,1746631839001,-450.0,0.00019764,2]
[360219040,1746631839011,-450.0,0.00019764,2]
[360219041,1746631839020,-450.0,0.00019764,2]
[360219042,1746631839030,-450.0,0.00019764,2]
[360219043,1746631839040,-263.01652138,0.00019764,2]
[360219044,1746631839049,-450.0,0.00019764,2]
[360219045,1746631839058,-450.0,0.00019764,2]
[360219046,1746631839067,-557.08252322,0.00019773,2]
[360219047,1746631839077,-511.45354913,0.00019773,2]
[360219048,1746631839087,-500.0,0.00019773,2]
[360219049,1746631839096,-369.21241162,0.00019773,2]
[360219050,1746631839106,-500.0,0.00019773,2]
[360219051,1746631839317,-500.0,0.00019773,2]
[360219052,1746631839328,-500.0,0.00019773,2]
[360219053,1746631839338,-500.0,0.00019773,2]
[360219054,1746631839347,-500.0,0.00019773,2]
[360219055,1746631839357,-500.0,0.00019773,2]
[360219056,1746631839367,-500.0,0.00019773,2]
[360219057,1746631839376,-500.0,0.00019773,2]
[360219058,1746631839386,-500.0,0.00019773,2]
[360219060,1746631839395,-518.20181864,0.00019773,2]
[360219061,1746631839405,-450.0,0.00019773,2]
[360219062,1746631839414,-500.0,0.00019773,2]
[360219063,1746631839424,-500.0,0.00019773,2]
[360219064,1746631839433,-500.0,0.00019773,2]
[360219065,1746631839443,-502.90716498,0.00019773,2]
[360219066,1746631839452,-501.88004614,0.00019773,2]
[360219067,1746631839463,-544.84904304,0.00019773,2]
[360219068,1746631839474,-502.61013893,0.00019773,2]
[360219069,1746631839483,-502.36797298,0.00019773,2]
[360219070,1746631839492,-487.41144627,0.00019773,2]
[360219071,1746631839502,-450.0,0.00019773,2]
[360219072,1746631839512,-504.12171348,0.00019773,2]
[360219073,1746631839522,-471.07034789,0.00019773,2]
[360219074,1746631839531,-500.0,0.00019773,2]
[360219075,1746631839543,-500.0,0.00019773,2]
[360219076,1746631839552,-500.0,0.00019773,2]
[360219077,1746631839562,-388.2046402,0.00019773,2]
[360219078,1746631839572,-554.61900703,0.00019773,2]
[360219079,1746631839582,-502.38839478,0.00019773,2]
[360219080,1746631839591,-864.1577,0.00019775,2]
[360219081,1746631839601,-10485.7294,0.00019775,2]
[360219082,1746631839611,-855.5,0.00019775,3]
[360219083,1746631839620,-847.0037,0.0001978,2]
[360219085,1746631839630,-16822.86687913,0.00019785,2]
[360219086,1746631839640,-6118.5499477,0.0001979,2]
[360219087,1746631839649,-398.8182,0.00019791,2]
[360219088,1746631839659,-501.30060406,0.00019791,2]
[360219089,1746631839669,-503.23404393,0.00019791,2]
[360219090,1746631839678,-502.59709099,0.00019791,2]
[360219091,1746631839689,-500.0,0.00019791,2]
[360219092,1746631839698,-496.08272906,0.00019791,2]
[360219093,1746631839708,-502.0808744,0.00019791,2]
[360219094,1746631839718,-450.0,0.00019791,2]
[360219095,1746631839729,-208.69101653,0.00019791,2]
[360219096,1746631839739,-380.12358482,0.00019791,2]
[360219097,1746631839748,-551.57300527,0.00019791,2]
[360219098,1746631839758,-499.91116385,0.00019791,2]
[360219099,1746631839767,-500.0,0.00019791,2]
[360219100,1746631839777,-500.0,0.00019791,2]
[360219101,1746631839786,-500.0,0.00019791,2]
[360219102,1746631839796,-500.0,0.00019791,2]
[360219103,1746631839806,-500.0,0.00019791,2]
[360219104,1746631839815,-450.0,0.00019791,2]
[360219105,1746631839824,-544.88218439,0.00019791,2]
[360219106,1746631839836,-450.0,0.00019791,2]
[360219107,1746631839845,-450.0,0.00019791,2]
[360219108,1746631839855,-450.0,0.00019791,2]